[Event "Late Titled Tuesday Blitz February 8 2022"]
[White "Ortiz Verdezoto, Anahi"]
[Black "Fier, Alexandr"]
[WhiteFideId "3614581"]
[BlackFideId "2107139"]
[WhiteElo "1785"]
[BlackElo "2569"]
[Result "0-1"]
[Round "04"]
[TimeControl "180+1"]
[Date "2022.02.09"]
[WhiteClock "0:00:01"]
[BlackClock "0:00:36"]

1. d4 {[%clk 0:02:57]}  Nf6 {[%clk 0:02:44]} 2. c4 {[%clk 0:02:56]}  c5 {[%clk 0:02:45]} 3. d5 {[%clk 0:02:56]}  e6 {[%clk 0:02:46]} 4. Nc3 {[%clk 0:02:56]}  exd5 {[%clk 0:02:47]} 5. cxd5 {[%clk 0:02:56]}  d6 {[%clk 0:02:48]} 6. e4 {[%clk 0:02:56]}  g6 {[%clk 0:02:48]} 7. Bg5 {[%clk 0:02:56]}  Bg7 {[%clk 0:02:48]} 8. Nf3 {[%clk 0:02:56]}  O-O {[%clk 0:02:49]} 9. Bd3 {[%clk 0:02:56]}  Re8 {[%clk 0:02:42]} 10. O-O {[%clk 0:02:54]}  a6 {[%clk 0:02:41]} 11. a4 {[%clk 0:02:53]}  Nbd7 {[%clk 0:02:42]} 12. Qd2 {[%clk 0:02:50]}  Qc7 {[%clk 0:02:42]} 13. Rac1 {[%clk 0:02:42]}  c4 {[%clk 0:02:41]} 14. Bc2 {[%clk 0:02:40]}  Nc5 {[%clk 0:02:41]} 15. Rfe1 {[%clk 0:02:36]}  Bd7 {[%clk 0:02:39]} 16. e5 {[%clk 0:02:20]}  dxe5 {[%clk 0:02:35]} 17. d6 {[%clk 0:02:20]}  Qb6 {[%clk 0:02:36]} 18. Nxe5 {[%clk 0:02:19]}  Qxb2 {[%clk 0:02:33]} 19. Nxc4 {[%clk 0:02:04]}  Qb4 {[%clk 0:02:33]} 20. Ne5 {[%clk 0:01:56]}  Be6 {[%clk 0:02:17]} 21. Rb1 {[%clk 0:01:50]}  Qa5 {[%clk 0:02:17]} 22. Be3 {[%clk 0:01:11]}  Ncd7 {[%clk 0:02:11]} 23. Bd4 {[%clk 0:01:09]}  Nxe5 {[%clk 0:01:52]} 24. Rxe5 {[%clk 0:01:08]}  Qd8 {[%clk 0:01:51]} 25. Bb6 {[%clk 0:00:57]}  Qd7 {[%clk 0:01:50]} 26. a5 {[%clk 0:00:56]}  Ng4 {[%clk 0:01:38]} 27. Ree1 {[%clk 0:00:52]}  Qc6 {[%clk 0:01:12]} 28. Ne4 {[%clk 0:00:47]}  Rac8 {[%clk 0:00:58]} 29. Bd1 {[%clk 0:00:37]}  Ne5 {[%clk 0:00:56]} 30. Bd4 {[%clk 0:00:23]}  Nc4 {[%clk 0:00:56]} 31. Qd3 {[%clk 0:00:22]}  Qd5 {[%clk 0:00:55]} 32. Bf3 {[%clk 0:00:14]}  Qxd4 {[%clk 0:00:54]} 33. Qxd4 {[%clk 0:00:11]}  Bxd4 {[%clk 0:00:55]} 34. Rbd1 {[%clk 0:00:07]}  Bg7 {[%clk 0:00:38]} 35. d7 {[%clk 0:00:07]}  Bxd7 {[%clk 0:00:39]} 36. Rxd7 {[%clk 0:00:07]}  f5 {[%clk 0:00:38]} 37. Bd1 {[%clk 0:00:03]}  fxe4 {[%clk 0:00:37]} 38. Bb3 {[%clk 0:00:02]}  Kh8 {[%clk 0:00:37]} 39. f3 {[%clk 0:00:01]}  e3 {[%clk 0:00:36]} 40. Kf1 {[%clk 0:00:01]}  Nd2+ {[%clk 0:00:36]} 0-1


[Site "https://www.chess.com"]

[Event "Late Titled Tuesday Blitz February 8 2022"]
[White "Peatman, Carter"]
[Black "Vargas Pereda, Jesus Manue"]
[WhiteFideId "2096480"]
[BlackFideId "5115710"]
[WhiteElo "2422"]
[BlackElo "1748"]
[Result "1-0"]
[Round "04"]
[TimeControl "180+1"]
[Date "2022.02.09"]
[WhiteClock "0:01:16"]
[BlackClock "0:00:02"]

1. d4 {[%clk 0:03:00]}  Nf6 {[%clk 0:02:59]} 2. Bf4 {[%clk 0:03:00]}  d5 {[%clk 0:02:55]} 3. e3 {[%clk 0:03:00]}  e6 {[%clk 0:02:52]} 4. Nf3 {[%clk 0:03:00]}  Bd6 {[%clk 0:02:52]} 5. Bg3 {[%clk 0:03:01]}  c5 {[%clk 0:02:50]} 6. c3 {[%clk 0:03:00]}  Nc6 {[%clk 0:02:49]} 7. Bd3 {[%clk 0:02:59]}  O-O {[%clk 0:02:47]} 8. Nbd2 {[%clk 0:03:00]}  a6 {[%clk 0:02:39]} 9. Qe2 {[%clk 0:02:56]}  b5 {[%clk 0:02:38]} 10. e4 {[%clk 0:02:55]}  dxe4 {[%clk 0:02:35]} 11. Nxe4 {[%clk 0:02:55]}  Bxg3 {[%clk 0:01:58]} 12. hxg3 {[%clk 0:02:48]}  g6 {[%clk 0:01:24]} 13. Nxc5 {[%clk 0:02:38]}  b4 {[%clk 0:01:12]} 14. Ne5 {[%clk 0:02:02]}  Nxe5 {[%clk 0:01:05]} 15. Qxe5 {[%clk 0:02:03]}  bxc3 {[%clk 0:00:56]} 16. bxc3 {[%clk 0:02:03]}  Nd5 {[%clk 0:00:36]} 17. Rc1 {[%clk 0:02:03]}  Qa5 {[%clk 0:00:20]} 18. Ne4 {[%clk 0:01:47]}  Bb7 {[%clk 0:00:15]} 19. O-O {[%clk 0:01:40]}  Rac8 {[%clk 0:00:14]} 20. c4 {[%clk 0:01:39]}  Qa3 {[%clk 0:00:06]} 21. cxd5 {[%clk 0:01:36]}  Qxd3 {[%clk 0:00:06]} 22. Nf6+ {[%clk 0:01:30]}  Kg7 {[%clk 0:00:05]} 23. Ne8+ {[%clk 0:01:27]}  Kh6 {[%clk 0:00:03]} 24. Rxc8 {[%clk 0:01:15]}  Bxc8 {[%clk 0:00:02]} 25. Qg7+ {[%clk 0:01:15]}  Kh5 {[%clk 0:00:02]} 26. Qxf8 {[%clk 0:01:16]} 1-0


[Site "https://www.chess.com"]

[Event "Late Titled Tuesday Blitz February 8 2022"]
[White "Pesotskiy, Mikhail"]
[Black "Ishbaev, Alibek"]
[WhiteFideId "34164453"]
[BlackFideId "14205017"]
[WhiteElo "2010"]
[BlackElo "2378"]
[Result "1-0"]
[Round "04"]
[TimeControl "180+1"]
[Date "2022.02.09"]
[WhiteClock "0:00:08"]
[BlackClock "0:00:05"]

1. d4 {[%clk 0:02:58]}  g6 {[%clk 0:02:58]} 2. c4 {[%clk 0:02:59]}  Bg7 {[%clk 0:02:59]} 3. e4 {[%clk 0:02:59]}  c6 {[%clk 0:02:57]} 4. Nc3 {[%clk 0:02:59]}  e6 {[%clk 0:02:58]} 5. Nf3 {[%clk 0:02:55]}  d5 {[%clk 0:02:58]} 6. Bd3 {[%clk 0:02:56]}  Ne7 {[%clk 0:02:58]} 7. O-O {[%clk 0:02:56]}  O-O {[%clk 0:02:58]} 8. Bg5 {[%clk 0:02:57]}  h6 {[%clk 0:02:58]} 9. Bh4 {[%clk 0:02:56]}  dxe4 {[%clk 0:02:50]} 10. Nxe4 {[%clk 0:02:48]}  g5 {[%clk 0:02:49]} 11. Nfxg5 {[%clk 0:02:44]}  hxg5 {[%clk 0:02:48]} 12. Nxg5 {[%clk 0:02:45]}  Ng6 {[%clk 0:02:40]} 13. Qh5 {[%clk 0:02:45]}  Re8 {[%clk 0:02:27]} 14. Qh7+ {[%clk 0:02:34]}  Kf8 {[%clk 0:02:26]} 15. Nxe6+ {[%clk 0:02:34]}  Bxe6 {[%clk 0:02:21]} 16. Bxd8 {[%clk 0:02:35]}  Rxd8 {[%clk 0:02:19]} 17. Rfe1 {[%clk 0:02:00]}  Nf4 {[%clk 0:02:16]} 18. Bf1 {[%clk 0:02:00]}  Rxd4 {[%clk 0:02:15]} 19. Re4 {[%clk 0:01:56]}  Ng6 {[%clk 0:02:04]} 20. Rxd4 {[%clk 0:01:55]}  Bxd4 {[%clk 0:02:05]} 21. Rd1 {[%clk 0:01:55]}  c5 {[%clk 0:02:05]} 22. Re1 {[%clk 0:01:52]}  Bf5 {[%clk 0:02:00]} 23. Qh5 {[%clk 0:01:49]}  Bd7 {[%clk 0:01:50]} 24. Bd3 {[%clk 0:01:46]}  Nc6 {[%clk 0:01:33]} 25. Bxg6 {[%clk 0:01:43]}  fxg6 {[%clk 0:01:34]} 26. Qxg6 {[%clk 0:01:44]}  Re8 {[%clk 0:01:25]} 27. Rxe8+ {[%clk 0:01:42]}  Bxe8 {[%clk 0:01:23]} 28. Qd6+ {[%clk 0:01:43]}  Kg8 {[%clk 0:01:17]} 29. h4 {[%clk 0:01:43]}  Ne5 {[%clk 0:01:10]} 30. Qd5+ {[%clk 0:01:22]}  Bf7 {[%clk 0:01:09]} 31. Qxb7 {[%clk 0:01:22]}  Nxc4 {[%clk 0:01:05]} 32. b3 {[%clk 0:01:21]}  Ne5 {[%clk 0:01:03]} 33. Qxa7 {[%clk 0:01:21]}  Ng4 {[%clk 0:01:03]} 34. h5 {[%clk 0:00:57]}  Bxh5 {[%clk 0:00:56]} 35. Qb8+ {[%clk 0:00:53]}  Kg7 {[%clk 0:00:52]} 36. Qc7+ {[%clk 0:00:48]}  Kh6 {[%clk 0:00:40]} 37. a4 {[%clk 0:00:47]}  Nxf2 {[%clk 0:00:37]} 38. a5 {[%clk 0:00:42]}  Ne4+ {[%clk 0:00:31]} 39. Kf1 {[%clk 0:00:39]}  Nd2+ {[%clk 0:00:20]} 40. Ke1 {[%clk 0:00:37]}  Bc3 {[%clk 0:00:20]} 41. a6 {[%clk 0:00:35]}  Nxb3+ {[%clk 0:00:17]} 42. Kf1 {[%clk 0:00:26]}  Nd2+ {[%clk 0:00:17]} 43. Kf2 {[%clk 0:00:26]}  Bd4+ {[%clk 0:00:18]} 44. Kg3 {[%clk 0:00:21]}  Ne4+ {[%clk 0:00:18]} 45. Kh2 {[%clk 0:00:15]}  Nf2 {[%clk 0:00:12]} 46. a7 {[%clk 0:00:15]}  Ng4+ {[%clk 0:00:12]} 47. Kg3 {[%clk 0:00:15]}  Bf2+ {[%clk 0:00:11]} 48. Kh3 {[%clk 0:00:14]}  Ne3 {[%clk 0:00:10]} 49. a8=Q {[%clk 0:00:14]}  Bg4+ {[%clk 0:00:10]} 50. Kh2 {[%clk 0:00:12]}  Nf1+ {[%clk 0:00:11]} 51. Kh1 {[%clk 0:00:13]}  Ng3+ {[%clk 0:00:11]} 52. Qxg3 {[%clk 0:00:13]}  Bxg3 {[%clk 0:00:12]} 53. Qc6+ {[%clk 0:00:13]}  Kg5 {[%clk 0:00:13]} 54. Qxc5+ {[%clk 0:00:14]}  Bf5 {[%clk 0:00:13]} 55. Qe3+ {[%clk 0:00:14]}  Bf4 {[%clk 0:00:13]} 56. Qe1 {[%clk 0:00:15]}  Kg4 {[%clk 0:00:13]} 57. Kg1 {[%clk 0:00:14]}  Bg3 {[%clk 0:00:13]} 58. Qe2+ {[%clk 0:00:15]}  Kg5 {[%clk 0:00:13]} 59. Qf3 {[%clk 0:00:15]}  Bf4 {[%clk 0:00:12]} 60. g3 {[%clk 0:00:15]}  Be5 {[%clk 0:00:12]} 61. Kf2 {[%clk 0:00:15]}  Bg4 {[%clk 0:00:12]} 62. Qe3+ {[%clk 0:00:14]}  Kf5 {[%clk 0:00:13]} 63. Qd3+ {[%clk 0:00:15]}  Kf6 {[%clk 0:00:12]} 64. Qe4 {[%clk 0:00:14]}  Bf5 {[%clk 0:00:11]} 65. Qc6+ {[%clk 0:00:15]}  Be6 {[%clk 0:00:11]} 66. Kf3 {[%clk 0:00:15]}  Kf5 {[%clk 0:00:07]} 67. g4+ {[%clk 0:00:14]}  Kf6 {[%clk 0:00:08]} 68. Ke4 {[%clk 0:00:15]}  Bg3 {[%clk 0:00:07]} 69. g5+ {[%clk 0:00:15]}  Kf7 {[%clk 0:00:07]} 70. Kf3 {[%clk 0:00:14]}  Be5 {[%clk 0:00:07]} 71. Ke4 {[%clk 0:00:13]}  Bg7 {[%clk 0:00:06]} 72. Qb7+ {[%clk 0:00:13]}  Kg6 {[%clk 0:00:07]} 73. Qe7 {[%clk 0:00:13]}  Bf5+ {[%clk 0:00:07]} 74. Kf4 {[%clk 0:00:13]}  Bd3 {[%clk 0:00:07]} 75. Qe6+ {[%clk 0:00:11]}  Kh7 {[%clk 0:00:07]} 76. Kg4 {[%clk 0:00:10]}  Bg6 {[%clk 0:00:06]} 77. Kh4 {[%clk 0:00:10]}  Bh8 {[%clk 0:00:05]} 78. Qe7+ {[%clk 0:00:10]}  Bg7 {[%clk 0:00:06]} 79. Kg4 {[%clk 0:00:11]}  Kh8 {[%clk 0:00:06]} 80. Kf4 {[%clk 0:00:10]}  Kh7 {[%clk 0:00:06]} 81. Qe6 {[%clk 0:00:10]}  Bh5 {[%clk 0:00:06]} 82. Kf5 {[%clk 0:00:09]}  Bd1 {[%clk 0:00:05]} 83. g6+ {[%clk 0:00:09]}  Kh6 {[%clk 0:00:04]} 84. Qe3+ {[%clk 0:00:07]}  Kh5 {[%clk 0:00:05]} 85. Qh3# {[%clk 0:00:08]} 1-0


[Site "https://www.chess.com"]

[Event "Late Titled Tuesday Blitz February 8 2022"]
[White "Proleiko, Julian"]
[Black "Derraugh, Geordie"]
[WhiteFideId "30900255"]
[BlackFideId "2603950"]
[WhiteElo "2116"]
[BlackElo "2116"]
[Result "0-1"]
[Round "04"]
[TimeControl "180+1"]
[Date "2022.02.09"]
[WhiteClock "0:00:10"]
[BlackClock "0:00:04"]

1. d4 {[%clk 0:03:00]}  Nf6 {[%clk 0:02:59]} 2. Nf3 {[%clk 0:03:01]}  g6 {[%clk 0:02:57]} 3. g3 {[%clk 0:03:02]}  Bg7 {[%clk 0:02:56]} 4. Bg2 {[%clk 0:03:03]}  O-O {[%clk 0:02:57]} 5. O-O {[%clk 0:03:04]}  d5 {[%clk 0:02:56]} 6. b3 {[%clk 0:03:05]}  c5 {[%clk 0:02:53]} 7. Bb2 {[%clk 0:03:04]}  Ne4 {[%clk 0:02:48]} 8. c3 {[%clk 0:02:58]}  Nc6 {[%clk 0:02:45]} 9. Nbd2 {[%clk 0:02:57]}  Qa5 {[%clk 0:02:39]} 10. Nxe4 {[%clk 0:02:51]}  dxe4 {[%clk 0:02:40]} 11. Nd2 {[%clk 0:02:52]}  cxd4 {[%clk 0:02:38]} 12. cxd4 {[%clk 0:02:41]}  Nxd4 {[%clk 0:02:33]} 13. Nc4 {[%clk 0:02:36]}  Qc5 {[%clk 0:02:22]} 14. Rc1 {[%clk 0:02:20]}  f5 {[%clk 0:02:07]} 15. Ba3 {[%clk 0:02:01]}  Qc7 {[%clk 0:01:57]} 16. Nd6 {[%clk 0:01:56]}  Qd7 {[%clk 0:01:53]} 17. Nxc8 {[%clk 0:01:53]}  Raxc8 {[%clk 0:01:54]} 18. e3 {[%clk 0:01:51]}  Rxc1 {[%clk 0:01:47]} 19. Bxc1 {[%clk 0:01:52]}  e5 {[%clk 0:01:47]} 20. Bb2 {[%clk 0:01:38]}  Rd8 {[%clk 0:01:40]} 21. exd4 {[%clk 0:01:38]}  exd4 {[%clk 0:01:41]} 22. Qc2 {[%clk 0:01:37]}  d3 {[%clk 0:01:27]} 23. Qc4+ {[%clk 0:01:28]}  Qd5 {[%clk 0:01:17]} 24. Qxd5+ {[%clk 0:01:18]}  Rxd5 {[%clk 0:01:17]} 25. Bxg7 {[%clk 0:01:18]}  Kxg7 {[%clk 0:01:18]} 26. Rc1 {[%clk 0:01:17]}  Kf6 {[%clk 0:01:07]} 27. f4 {[%clk 0:01:13]}  Ra5 {[%clk 0:00:45]} 28. a4 {[%clk 0:01:05]}  b5 {[%clk 0:00:42]} 29. Kf2 {[%clk 0:00:59]}  bxa4 {[%clk 0:00:41]} 30. Rc6+ {[%clk 0:00:45]}  Ke7 {[%clk 0:00:23]} 31. bxa4 {[%clk 0:00:45]}  Rxa4 {[%clk 0:00:22]} 32. Ke3 {[%clk 0:00:27]}  Ra2 {[%clk 0:00:22]} 33. Bf1 {[%clk 0:00:26]}  Rxh2 {[%clk 0:00:17]} 34. Rc7+ {[%clk 0:00:26]}  Kd6 {[%clk 0:00:17]} 35. Rxa7 {[%clk 0:00:26]}  Rh1 {[%clk 0:00:12]} 36. Ra6+ {[%clk 0:00:21]}  Kc5 {[%clk 0:00:12]} 37. Ra1 {[%clk 0:00:21]}  h6 {[%clk 0:00:07]} 38. Rc1+ {[%clk 0:00:19]}  Kb4 {[%clk 0:00:07]} 39. Rd1 {[%clk 0:00:18]}  Kc3 {[%clk 0:00:06]} 40. Be2 {[%clk 0:00:11]}  Rxd1 {[%clk 0:00:01]} 41. Bxd1 {[%clk 0:00:11]}  g5 {[%clk 0:00:02]} 42. Bh5 {[%clk 0:00:09]}  gxf4+ {[%clk 0:00:02]} 43. gxf4 {[%clk 0:00:10]}  Kc2 {[%clk 0:00:02]} 44. Bg6 {[%clk 0:00:08]}  d2 {[%clk 0:00:02]} 45. Bxf5 {[%clk 0:00:06]}  d1=Q {[%clk 0:00:02]} 46. Bxe4+ {[%clk 0:00:07]}  Kc3 {[%clk 0:00:02]} 47. Bf3 {[%clk 0:00:08]}  Qd2+ {[%clk 0:00:03]} 48. Ke4 {[%clk 0:00:08]}  Qd4+ {[%clk 0:00:03]} 49. Kf5 {[%clk 0:00:09]}  Qe3 {[%clk 0:00:04]} 50. Kg4 {[%clk 0:00:09]}  Qe6+ {[%clk 0:00:03]} 51. f5 {[%clk 0:00:09]}  Qf6 {[%clk 0:00:04]} 52. Kf4 {[%clk 0:00:09]}  Kd4 {[%clk 0:00:03]} 53. Bg4 {[%clk 0:00:08]}  Qg5+ {[%clk 0:00:04]} 54. Kg3 {[%clk 0:00:08]}  Ke5 {[%clk 0:00:04]} 55. Kf3 {[%clk 0:00:09]}  Kf6 {[%clk 0:00:04]} 56. Kg3 {[%clk 0:00:10]}  h5 {[%clk 0:00:04]} 0-1


[Site "https://www.chess.com"]

[Event "Late Titled Tuesday Blitz February 8 2022"]
[White "Punin, Andrii"]
[Black "Cunha, Lucas Aguiar"]
[WhiteFideId "14112639"]
[BlackFideId "2125404"]
[WhiteElo "2357"]
[BlackElo "2361"]
[Result "1-0"]
[Round "04"]
[TimeControl "180+1"]
[Date "2022.02.09"]
[WhiteClock "0:00:04"]
[BlackClock "0:00:05"]

1. d4 {[%clk 0:03:00]}  Nf6 {[%clk 0:02:59]} 2. Nf3 {[%clk 0:02:59]}  c5 {[%clk 0:02:57]} 3. e3 {[%clk 0:02:53]}  d5 {[%clk 0:02:55]} 4. Bd3 {[%clk 0:02:41]}  Nc6 {[%clk 0:02:53]} 5. O-O {[%clk 0:02:40]}  Bg4 {[%clk 0:02:50]} 6. c3 {[%clk 0:02:35]}  e6 {[%clk 0:02:47]} 7. Nbd2 {[%clk 0:02:33]}  c4 {[%clk 0:02:38]} 8. Bc2 {[%clk 0:02:26]}  b5 {[%clk 0:02:38]} 9. e4 {[%clk 0:02:24]}  Be7 {[%clk 0:02:37]} 10. e5 {[%clk 0:02:19]}  Nd7 {[%clk 0:02:36]} 11. h3 {[%clk 0:02:13]}  Bh5 {[%clk 0:02:36]} 12. Re1 {[%clk 0:02:13]}  Qb6 {[%clk 0:02:30]} 13. Nf1 {[%clk 0:02:13]}  Bg6 {[%clk 0:02:23]} 14. Bxg6 {[%clk 0:02:11]}  hxg6 {[%clk 0:02:24]} 15. Bg5 {[%clk 0:02:11]}  O-O-O {[%clk 0:02:15]} 16. Bxe7 {[%clk 0:02:09]}  Nxe7 {[%clk 0:02:16]} 17. b4 {[%clk 0:02:01]}  cxb3 {[%clk 0:01:56]} 18. Qxb3 {[%clk 0:02:00]}  Nc6 {[%clk 0:01:17]} 19. Reb1 {[%clk 0:02:00]}  a6 {[%clk 0:01:15]} 20. a4 {[%clk 0:01:59]}  Na5 {[%clk 0:01:13]} 21. Qb4 {[%clk 0:01:51]}  Nc4 {[%clk 0:01:08]} 22. axb5 {[%clk 0:01:44]}  Qxb5 {[%clk 0:01:09]} 23. Qe7 {[%clk 0:01:34]}  Qc6 {[%clk 0:01:09]} 24. Qxf7 {[%clk 0:01:34]}  Rdf8 {[%clk 0:01:03]} 25. Qxg6 {[%clk 0:01:29]}  Rxf3 {[%clk 0:01:00]} 26. gxf3 {[%clk 0:01:30]}  Ndxe5 {[%clk 0:00:55]} 27. dxe5 {[%clk 0:01:21]}  Nxe5 {[%clk 0:00:55]} 28. Qg3 {[%clk 0:01:19]}  Rh5 {[%clk 0:00:41]} 29. Nh2 {[%clk 0:01:17]}  Rf5 {[%clk 0:00:39]} 30. Re1 {[%clk 0:01:01]}  Nf7 {[%clk 0:00:36]} 31. h4 {[%clk 0:00:52]}  e5 {[%clk 0:00:27]} 32. Ng4 {[%clk 0:00:43]}  Qe6 {[%clk 0:00:18]} 33. Ra2 {[%clk 0:00:33]}  e4 {[%clk 0:00:11]} 34. fxe4 {[%clk 0:00:25]}  dxe4 {[%clk 0:00:11]} 35. Rae2 {[%clk 0:00:23]}  Nd6 {[%clk 0:00:12]} 36. Rd2 {[%clk 0:00:18]}  Nc4 {[%clk 0:00:10]} 37. Rd4 {[%clk 0:00:17]}  e3 {[%clk 0:00:05]} 38. Nxe3 {[%clk 0:00:12]}  Rc5 {[%clk 0:00:05]} 39. Red1 {[%clk 0:00:06]}  Ne5 {[%clk 0:00:05]} 40. Rd8+ {[%clk 0:00:06]}  Kb7 {[%clk 0:00:05]} 41. Qxg7+ {[%clk 0:00:06]}  Rc7 {[%clk 0:00:05]} 42. Qg2+ {[%clk 0:00:05]}  Ka7 {[%clk 0:00:05]} 43. Qa8+ {[%clk 0:00:05]}  Kb6 {[%clk 0:00:05]} 44. R8d6+ {[%clk 0:00:04]} 1-0


[Site "https://www.chess.com"]

[Event "Late Titled Tuesday Blitz February 8 2022"]
[White "Rangel, Daniel"]
[Black "Stoleriu, George"]
[WhiteFideId "2124475"]
[BlackFideId "1227505"]
[WhiteElo "2187"]
[BlackElo "2203"]
[Result "0-1"]
[Round "04"]
[TimeControl "180+1"]
[Date "2022.02.09"]
[WhiteClock "0:01:01"]
[BlackClock "0:01:33"]

1. c4 {[%clk 0:03:00]}  e5 {[%clk 0:02:35]} 2. g3 {[%clk 0:03:00]}  Nc6 {[%clk 0:02:35]} 3. Bg2 {[%clk 0:03:01]}  g6 {[%clk 0:02:36]} 4. Nc3 {[%clk 0:03:01]}  Bg7 {[%clk 0:02:36]} 5. e3 {[%clk 0:03:02]}  d6 {[%clk 0:02:37]} 6. Nge2 {[%clk 0:03:02]}  h5 {[%clk 0:02:38]} 7. h4 {[%clk 0:03:02]}  Be6 {[%clk 0:02:37]} 8. Nd5 {[%clk 0:03:01]}  Qd7 {[%clk 0:02:35]} 9. Nec3 {[%clk 0:03:00]}  Nd8 {[%clk 0:02:34]} 10. Nb5 {[%clk 0:02:20]}  Bxd5 {[%clk 0:02:27]} 11. Bxd5 {[%clk 0:02:05]}  c6 {[%clk 0:02:27]} 12. Nc3 {[%clk 0:01:57]}  cxd5 {[%clk 0:02:16]} 13. Nxd5 {[%clk 0:01:58]}  Ne7 {[%clk 0:02:15]} 14. Nc3 {[%clk 0:01:57]}  Qc6 {[%clk 0:02:12]} 15. O-O {[%clk 0:01:55]}  Qxc4 {[%clk 0:02:12]} 16. d4 {[%clk 0:01:48]}  O-O {[%clk 0:02:08]} 17. d5 {[%clk 0:01:34]}  b5 {[%clk 0:02:04]} 18. a3 {[%clk 0:01:31]}  e4 {[%clk 0:01:55]} 19. Bd2 {[%clk 0:01:20]}  Nxd5 {[%clk 0:01:53]} 20. Rc1 {[%clk 0:01:18]}  Nxc3 {[%clk 0:01:48]} 21. Bxc3 {[%clk 0:01:19]}  Bxc3 {[%clk 0:01:48]} 22. Rxc3 {[%clk 0:01:20]}  Qe6 {[%clk 0:01:47]} 23. Qd4 {[%clk 0:01:15]}  Nb7 {[%clk 0:01:41]} 24. Rfc1 {[%clk 0:01:12]}  Nc5 {[%clk 0:01:35]} 25. b4 {[%clk 0:01:11]}  Nb3 {[%clk 0:01:34]} 26. Rxb3 {[%clk 0:01:05]}  Qxb3 {[%clk 0:01:35]} 27. Qxe4 {[%clk 0:01:02]}  Rac8 {[%clk 0:01:34]} 28. Rd1 {[%clk 0:01:01]}  Qxd1+ {[%clk 0:01:33]} 0-1


[Site "https://www.chess.com"]

[Event "Late Titled Tuesday Blitz February 8 2022"]
[White "Reprintsev, Alexander"]
[Black "Kostiukov, Alexandr"]
[WhiteFideId "14100541"]
[BlackFideId "14108100"]
[WhiteElo "2126"]
[BlackElo "2202"]
[Result "1-0"]
[Round "04"]
[TimeControl "180+1"]
[Date "2022.02.09"]
[WhiteClock "0:00:04"]
[BlackClock "0:00:08"]

1. e4 {[%clk 0:01:53]}  c5 {[%clk 0:02:43]} 2. b3 {[%clk 0:01:53]}  g6 {[%clk 0:02:43]} 3. Bb2 {[%clk 0:01:53]}  Nf6 {[%clk 0:02:44]} 4. e5 {[%clk 0:01:53]}  Nd5 {[%clk 0:02:44]} 5. Nc3 {[%clk 0:01:53]}  Nc7 {[%clk 0:02:43]} 6. d4 {[%clk 0:01:52]}  cxd4 {[%clk 0:02:43]} 7. Qxd4 {[%clk 0:01:52]}  Nc6 {[%clk 0:02:42]} 8. Qe3 {[%clk 0:01:51]}  Bg7 {[%clk 0:02:42]} 9. Nf3 {[%clk 0:01:51]}  O-O {[%clk 0:02:30]} 10. O-O-O {[%clk 0:01:51]}  d5 {[%clk 0:02:27]} 11. exd6 {[%clk 0:01:50]}  exd6 {[%clk 0:02:26]} 12. Bc4 {[%clk 0:01:42]}  Bg4 {[%clk 0:02:21]} 13. Rhe1 {[%clk 0:01:40]}  Bxf3 {[%clk 0:02:14]} 14. gxf3 {[%clk 0:01:32]}  Ne5 {[%clk 0:02:09]} 15. Be2 {[%clk 0:01:28]}  Qh4 {[%clk 0:02:06]} 16. f4 {[%clk 0:01:27]}  Bh6 {[%clk 0:02:05]} 17. Kb1 {[%clk 0:01:26]}  Bxf4 {[%clk 0:02:01]} 18. Qd4 {[%clk 0:01:24]}  Nc6 {[%clk 0:01:48]} 19. Qa4 {[%clk 0:01:18]}  Qh6 {[%clk 0:01:15]} 20. Bf3 {[%clk 0:01:17]}  Be5 {[%clk 0:00:57]} 21. Bxc6 {[%clk 0:01:16]}  bxc6 {[%clk 0:00:56]} 22. Qxc6 {[%clk 0:01:16]}  Ne6 {[%clk 0:00:50]} 23. Rxe5 {[%clk 0:01:16]}  dxe5 {[%clk 0:00:47]} 24. Ne4 {[%clk 0:01:17]}  Nd4 {[%clk 0:00:41]} 25. Rxd4 {[%clk 0:01:14]}  exd4 {[%clk 0:00:38]} 26. Nf6+ {[%clk 0:01:14]}  Kh8 {[%clk 0:00:31]} 27. Bxd4 {[%clk 0:01:15]}  Rad8 {[%clk 0:00:30]} 28. Ng4+ {[%clk 0:01:11]}  Rxd4 {[%clk 0:00:20]} 29. Nxh6 {[%clk 0:01:11]}  Kg7 {[%clk 0:00:21]} 30. Qc5 {[%clk 0:00:23]}  Rh4 {[%clk 0:00:11]} 31. Nf5+ {[%clk 0:00:15]}  gxf5 {[%clk 0:00:11]} 32. Qxa7 {[%clk 0:00:15]}  Rh6 {[%clk 0:00:09]} 33. Qd4+ {[%clk 0:00:15]}  f6 {[%clk 0:00:08]} 34. a4 {[%clk 0:00:15]}  Rf7 {[%clk 0:00:08]} 35. a5 {[%clk 0:00:14]}  Rg6 {[%clk 0:00:09]} 36. b4 {[%clk 0:00:14]}  Rg4 {[%clk 0:00:09]} 37. f4 {[%clk 0:00:14]}  Rg2 {[%clk 0:00:06]} 38. a6 {[%clk 0:00:13]}  Rc7 {[%clk 0:00:07]} 39. Qd3 {[%clk 0:00:11]}  Rg1+ {[%clk 0:00:06]} 40. Kb2 {[%clk 0:00:11]}  Re7 {[%clk 0:00:03]} 41. b5 {[%clk 0:00:11]}  Re4 {[%clk 0:00:02]} 42. Kc3 {[%clk 0:00:09]}  Rb1 {[%clk 0:00:02]} 43. a7 {[%clk 0:00:08]}  Ra1 {[%clk 0:00:02]} 44. b6 {[%clk 0:00:04]}  Rea4 {[%clk 0:00:02]} 45. Qd7+ {[%clk 0:00:03]}  Kg6 {[%clk 0:00:02]} 46. Qe8+ {[%clk 0:00:01]}  Kh6 {[%clk 0:00:02]} 47. Qe6 {[%clk 0:00:01]}  R1a3+ {[%clk 0:00:03]} 48. Kd2 {[%clk 0:00:01]}  Kh5 {[%clk 0:00:03]} 49. Qxf5+ {[%clk 0:00:01]}  Kh4 {[%clk 0:00:04]} 50. Qxf6+ {[%clk 0:00:01]}  Kh5 {[%clk 0:00:05]} 51. Qg7 {[%clk 0:00:02]}  Kh4 {[%clk 0:00:06]} 52. Qxh7+ {[%clk 0:00:02]}  Kg4 {[%clk 0:00:06]} 53. Qg6+ {[%clk 0:00:03]}  Kxf4 {[%clk 0:00:07]} 54. Qd3 {[%clk 0:00:04]}  Ke5 {[%clk 0:00:07]} 55. Qxa3 {[%clk 0:00:03]}  Rxa3 {[%clk 0:00:08]} 56. b7 {[%clk 0:00:03]}  Rxa7 {[%clk 0:00:08]} 57. b8=Q+ {[%clk 0:00:04]} 1-0


[Site "https://www.chess.com"]